fUST/lending_fUST_20260623
["ID","MTS","AMOUNT","RATE_DAILY","PERIOD"]
[426161196,1782198640000,-160.0,0.00020834,2]
[426161189,1782198640000,-162.32,0.00020782,2]
[426161190,1782198640000,-162.32,0.00020784,2]
[426161195,1782198640000,-182.860743,0.00020834,2]
[426161191,1782198640000,-162.34,0.00020786,2]
[426161192,1782198640000,-162.32,0.00020786,2]
[426161194,1782198640000,-171.430371,0.00020834,2]
[426161193,1782198640000,-160.0,0.00020834,2]
[426161170,1782198640000,-241.24995822,0.00020036,2]
[426161209,1782198640000,-151.0,0.00021566,30]
[426161182,1782198640000,-225.2602899,0.00020333,2]
[426161171,1782198640000,-188.82456774,0.00020036,2]
[426161154,1782198640000,-500.0,0.00019511,2]
[426161165,1782198640000,-500.0,0.00019785,2]
[426161198,1782198640000,-674.090691,0.00020834,2]
[426161121,1782198640000,-416.18331913,0.0001863,2]
[426161119,1782198640000,-500.0,0.0001863,2]
[426161117,1782198640000,-500.0,0.00018415,2]
[426161131,1782198640000,-500.0,0.00018963,2]
[426161123,1782198640000,-500.0,0.00018689,2]
[426161125,1782198640000,-163.23,0.00018689,2]
[426161135,1782198640000,-227.746,0.00018968,2]
[426161129,1782198640000,-267.54432816,0.00018904,2]
[426161127,1782198640000,-500.0,0.00018689,2]
[426161133,1782198640000,-500.0,0.00018963,2]
[426161137,1782198640000,-162.0,0.00019178,3]
[426161169,1782198640000,-150.07294189,0.00020036,2]
[426161148,1782198640000,-244.0,0.00019412,2]
[426161150,1782198640000,-3786.73365767,0.00019504,2]
[426161143,1782198640000,-1000.0,0.00019412,2]
[426161141,1782198640000,-500.0,0.00019237,2]
[426161139,1782198640000,-500.0,0.00019237,2]
[426161156,1782198640000,-160.0,0.00019567,2]
[426161160,1782198640000,-160.0,0.00019567,2]
[426161164,1782198640000,-500.0,0.00019785,2]
[426161168,1782198640000,-360.0,0.00020024,2]
[426161166,1782198640000,-300.0,0.0002,4]
[426161158,1782198640000,-160.0,0.00019567,2]
[426161167,1782198640000,-950.0,0.00020024,2]
[426161162,1782198640000,-417.15472785,0.00019567,2]
[426161152,1782198640000,-500.0,0.00019511,2]
[426161208,1782198640000,-1054.3535138,0.000215,2]
[426161197,1782198640000,-417.045345,0.00020834,2]
[426161272,1782198640000,-1000.0,0.00021917,2]
[426161232,1782198640000,-286.57,0.000219,2]
[426161234,1782198640000,-161.0,0.000219,15]
[426161238,1782198640000,-1000.0,0.00021917,2]
[426161258,1782198640000,-1000.0,0.00021917,2]
[426161257,1782198640000,-1000.0,0.00021917,2]
[426161264,1782198640000,-1000.0,0.00021917,2]
[426161262,1782198640000,-1000.0,0.00021917,2]
[426161274,1782198640000,-1000.0,0.00021917,2]
[426161271,1782198640000,-1000.0,0.00021917,2]
[426161273,1782198640000,-1000.0,0.00021917,2]
[426161270,1782198640000,-1000.0,0.00021917,2]
[426161268,1782198640000,-1000.0,0.00021917,2]
[426161266,1782198640000,-1000.0,0.00021917,2]
[426161276,1782198640000,-1000.0,0.00021917,2]
[426161279,1782198640000,-180.68105301,0.00021918,2]
[426161280,1782198640000,-168.08825938,0.00021918,2]
[426161283,1782198640000,-672.35303751,0.00021918,2]
[426161278,1782198640000,-160.54560782,0.00021918,2]
[426161281,1782198640000,-336.17651876,0.00021918,2]
[426161286,1782198640000,-653.53558536,0.00021918,2]
[426161277,1782198640000,-1000.0,0.00021917,2]
[426161285,1782198640000,-435.69039024,0.00021918,2]
[426161282,1782198640000,-504.26477814,0.00021918,2]
[426161284,1782198640000,-217.84519512,0.00021918,2]
[426161287,1782198640000,-871.38078048,0.00021918,2]
[426161288,1782198640000,-321.09121563,0.00021918,2]
[426161199,1782198640000,-160.0,0.00020855,2]
[426161249,1782198640000,-1000.0,0.00021917,2]
[426161253,1782198640000,-1000.0,0.00021917,2]
[426161260,1782198640000,-1000.0,0.00021917,2]
[426161255,1782198640000,-1000.0,0.00021917,2]
[426161200,1782198640000,-1850.811103,0.00020855,2]
[426161201,1782198640000,-3541.622206,0.00020855,2]
[426161202,1782198640000,-200.0,0.00021,2]
[426161204,1782198640000,-277.018212,0.00021172,2]
[426161203,1782198640000,-212.235595,0.00021172,2]
[426161205,1782198640000,-1000.0,0.00021354,10]
[426161207,1782198640000,-162.38692642,0.000214,10]
[426161206,1782198640000,-492.0,0.00021354,10]
[426161242,1782198640000,-1000.0,0.00021917,2]
[426161211,1782198640000,-162.53429705,0.00021753,3]
[426161219,1782198640000,-249.88962205,0.00021827,2]
[426161214,1782198640000,-184.678808,0.00021827,2]
[426161217,1782198640000,-188.596772,0.00021827,2]
[426161212,1782198640000,-181.524115,0.00021827,2]
[426161210,1782198640000,-510.64620247,0.00021712,2]
[426161230,1782198640000,-2075.79,0.000219,2]
[426161215,1782198640000,-178.028243,0.00021827,2]
[426161243,1782198640000,-1000.0,0.00021917,2]
[426161247,1782198640000,-1000.0,0.00021917,2]
[426161245,1782198640000,-549.77496667,0.00021917,2]
[426161251,1782198640000,-1000.0,0.00021917,2]
[426161236,1782198640000,-1000.0,0.00021917,2]
[426161240,1782198640000,-1000.0,0.00021917,2]
[426161226,1782198640000,-2075.791,0.000219,2]
[426161223,1782198640000,-500.454414,0.00021876,2]
[426161228,1782198640000,-2075.791,0.000219,2]
[426161221,1782198640000,-205.716445,0.00021876,2]
[426161225,1782198640000,-2220.973323,0.00021898,2]
[426161333,1782198641000,-291.03271481,0.00023,3]
[426161332,1782198641000,-692.98896196,0.00023,2]
[426161329,1782198641000,-316.8,0.000229,2]
[426161330,1782198641000,-3786.73365767,0.00022904,2]
[426161326,1782198641000,-160.0,0.00022887,14]
[426161336,1782198641000,-168.0,0.00023014,8]
[426161335,1782198641000,-207.89,0.00023007,2]
[426161325,1782198641000,-292.0,0.00022856,3]
[426161315,1782198641000,-1502.193013,0.0002265,2]
[426161319,1782198641000,-771.436672,0.00022813,14]
[426161318,1782198641000,-1000.0,0.00022799,2]
[426161331,1782198641000,-546.82553892,0.00022967,90]
[426161337,1782198641000,-207.89,0.00023014,2]
[426161324,1782198641000,-151.0,0.00022856,3]
[426161344,1782198641000,-207.89,0.00023055,2]
[426161328,1782198641000,-481.588284,0.00022887,14]
[426161350,1782198641000,-207.89,0.00023076,2]
[426161339,1782198641000,-207.89,0.00023028,2]
[426161342,1782198641000,-207.89,0.00023041,2]
[426161345,1782198641000,-207.89,0.00023062,2]
[426161340,1782198641000,-207.89,0.00023034,2]
[426161349,1782198641000,-1000.0,0.00023073,2]
[426161347,1782198641000,-190.0,0.00023064,2]
[426161343,1782198641000,-207.89,0.00023048,2]
[426161338,1782198641000,-207.89,0.00023021,2]
[426161348,1782198641000,-207.89,0.00023069,2]
[426161341,1782198641000,-288.18596,0.00023037,14]
[426161320,1782198641000,-160.225419,0.00022844,14]
[426161327,1782198641000,-320.794142,0.00022887,14]
[426161316,1782198641000,-1581.481278,0.00022757,14]
[426161290,1782198641000,-642.18243127,0.00021918,2]
[426161317,1782198641000,-1008.52955627,0.00022784,2]
[426161291,1782198641000,-300.0,0.00021938,2]
[426161299,1782198641000,-200.0,0.000221,2]
[426161292,1782198641000,-1000.0,0.00021977,2]
[426161289,1782198641000,-481.63682345,0.00021918,2]
[426161295,1782198641000,-160.0,0.00022045,14]
[426161294,1782198641000,-162.53429705,0.00022027,3]
[426161293,1782198641000,-500.0,0.00022,2]
[426161296,1782198641000,-235.745964,0.00022045,14]
[426161298,1782198641000,-211.556356,0.00022045,14]
[426161297,1782198641000,-311.491928,0.00022045,14]
[426161300,1782198641000,-1000.0,0.00022251,2]
[426161303,1782198641000,-164027.30242779,0.00022272,2]
[426161306,1782198641000,-1046.98166637,0.000225,2]
[426161302,1782198641000,-840.44129689,0.00022264,2]
[426161301,1782198641000,-193.31681029,0.00022253,2]
[426161304,1782198641000,-162.53429705,0.00022301,3]
[426161305,1782198641000,-504.8485,0.000225,2]
[426161307,1782198641000,-1000.0,0.00022525,2]
[426161308,1782198641000,-151.0,0.00022566,30]
[426161310,1782198641000,-1500.0,0.0002265,2]
[426161309,1782198641000,-162.53429705,0.00022575,3]
[426161323,1782198641000,-151.0,0.00022856,3]
[426161322,1782198641000,-151.0,0.00022856,3]
[426161312,1782198641000,-1500.0,0.0002265,2]
[426161311,1782198641000,-1500.0,0.0002265,2]
[426161314,1782198641000,-1500.0,0.0002265,2]
[426161321,1782198641000,-162.53429705,0.00022849,3]
[426161313,1782198641000,-1500.0,0.0002265,2]
[426161346,1782198641000,-210.0,0.00023064,2]
[426161334,1782198641000,-207.89,0.00023,2]
[426161354,1782198641000,-338.44,0.00023083,30]
[426161380,1782198641000,-458.2258714,0.00023112,2]
[426161383,1782198641000,-458.2258714,0.00023112,2]
[426161386,1782198641000,-327.087283,0.00023112,2]
[426161388,1782198641000,-458.2258714,0.00023112,2]
[426161387,1782198641000,-325.1261677,0.00023112,2]
[426161396,1782198641000,-526.67,0.0002312,30]
[426161392,1782198641000,-1238.26,0.00023112,7]
[426161390,1782198641000,-284.7744529,0.00023112,2]
[426161389,1782198641000,-458.2258714,0.00023112,2]
[426161394,1782198641000,-212.91119783,0.00023112,2]
[426161391,1782198641000,-1945.84,0.00023112,2]
[426161393,1782198641000,-353.79,0.00023112,2]
[426161395,1782198641000,-207.89,0.00023117,2]
[426161379,1782198641000,-327.087283,0.00023112,2]
[426161398,1782198641000,-162.53429705,0.00023123,3]
[426161410,1782198641000,-343.93347343,0.00023132,7]
[426161404,1782198641000,-500.0,0.00023132,10]
[426161409,1782198641000,-10732.71814628,0.00023132,2]
[426161402,1782198641000,-500.0,0.00023132,10]
[426161406,1782198641000,-500.0,0.00023132,10]
[426161399,1782198641000,-207.89,0.00023124,2]
[426161403,1782198641000,-500.0,0.00023132,10]
[426161400,1782198641000,-324.65,0.00023127,2]
[426161408,1782198641000,-583.7272162,0.00023132,10]
[426161411,1782198641000,-350.83933805,0.00023132,2]
[426161401,1782198641000,-500.0,0.00023132,10]
[426161405,1782198641000,-500.0,0.00023132,10]
[426161351,1782198641000,-3701.622205,0.0002308,14]
[426161397,1782198641000,-229.73,0.00023122,2]
[426161381,1782198641000,-327.087283,0.00023112,2]
[426161407,1782198641000,-500.0,0.00023132,10]
[426161375,1782198641000,-250.03,0.00023112,14]
[426161355,1782198641000,-338.45,0.00023083,30]
[426161353,1782198641000,-207.89,0.00023083,2]
[426161361,1782198641000,-207.89,0.00023097,2]
[426161359,1782198641000,-1607.0,0.00023088,30]
[426161363,1782198641000,-1000.0,0.000231,5]
[426161352,1782198641000,-1283.413846,0.0002308,5]
[426161357,1782198641000,-151.6320633,0.00023085,2]
[426161362,1782198641000,-200.25,0.000231,2]
[426161374,1782198641000,-156.0,0.00023112,14]
[426161356,1782198641000,-338.45,0.00023083,30]
[426161360,1782198641000,-207.89,0.0002309,2]
[426161364,1782198641000,-403.0,0.000231,2]
[426161412,1782198641000,-458.2258714,0.00023132,2]
[426161366,1782198641000,-207.89,0.0002311,2]
[426161358,1782198641000,-273.35,0.00023087,30]
[426161368,1782198641000,-329.2000986,0.00023111,2]
[426161365,1782198641000,-207.89,0.00023103,2]
[426161378,1782198641000,-327.087283,0.00023112,2]
[426161377,1782198641000,-327.087283,0.00023112,2]
[426161385,1782198641000,-458.2258714,0.00023112,2]
[426161376,1782198641000,-327.087283,0.00023112,2]
[426161384,1782198641000,-458.2258714,0.00023112,2]
[426161382,1782198641000,-458.2258714,0.00023112,2]
[426161370,1782198641000,-334.0568079,0.00023111,2]
[426161371,1782198641000,-250.03,0.00023111,14]
[426161372,1782198641000,-156.0,0.00023112,14]
[426161367,1782198641000,-327.087283,0.00023111,2]
[426161369,1782198641000,-462.748161,0.00023111,2]
[426161373,1782198641000,-500.0,0.00023112,30]
[426161454,1782198642000,-327.0402988,0.00023132,2]
[426161453,1782198642000,-300.0,0.00023132,2]
[426161457,1782198642000,-296.56933056,0.00023132,2]
[426161455,1782198642000,-823.19212955,0.00023132,2]
[426161446,1782198642000,-327.0402988,0.00023132,2]
[426161445,1782198642000,-458.2258714,0.00023132,2]
[426161444,1782198642000,-458.2258714,0.00023132,2]
[426161439,1782198642000,-458.2258714,0.00023132,2]
[426161448,1782198642000,-458.2258714,0.00023132,2]
[426161450,1782198642000,-327.087283,0.00023132,2]
[426161456,1782198642000,-332.29945338,0.00023132,2]
[426161452,1782198642000,-458.0870399,0.00023132,2]
[426161471,1782198642000,-458.1564556,0.00023132,2]
[426161463,1782198642000,-160.0781214,0.00023132,2]
[426161464,1782198642000,-515.76148716,0.00023132,2]
[426161451,1782198642000,-151.1358281,0.00023132,2]
[426161461,1782198642000,-713.82830293,0.00023132,2]
[426161460,1782198642000,-159.10167266,0.00023132,2]
[426161459,1782198642000,-1383.70202966,0.00023132,2]
[426161466,1782198642000,-475.38994829,0.00023132,2]
[426161467,1782198642000,-1618.86154886,0.00023132,2]
[426161472,1782198642000,-327.0402988,0.00023132,2]
[426161475,1782198642000,-204.55978268,0.00023132,2]
[426161465,1782198642000,-590.70107246,0.00023132,2]
[426161470,1782198642000,-1214.41073706,0.00023132,2]
[426161438,1782198642000,-458.2258714,0.00023132,2]
[426161462,1782198642000,-751.20724045,0.00023132,2]
[426161440,1782198642000,-458.2258714,0.00023132,2]
[426161437,1782198642000,-261.0642339,0.00023132,2]
[426161449,1782198642000,-327.0402988,0.00023132,2]
[426161474,1782198642000,-1450.58364336,0.00023132,2]
[426161414,1782198642000,-458.2258714,0.00023132,2]
[426161415,1782198642000,-326.8085508,0.00023132,2]
[426161417,1782198642000,-327.0402988,0.00023132,2]
[426161420,1782198642000,-458.2258714,0.00023132,2]
[426161419,1782198642000,-458.2258714,0.00023132,2]
[426161421,1782198642000,-458.2258714,0.00023132,2]
[426161418,1782198642000,-327.087283,0.00023132,2]
[426161423,1782198642000,-455.4084767,0.00023132,2]
[426161422,1782198642000,-458.2258714,0.00023132,2]
[426161413,1782198642000,-458.2258714,0.00023132,2]
[426161424,1782198642000,-458.2258714,0.00023132,2]
[426161416,1782198642000,-327.087283,0.00023132,2]
[426161442,1782198642000,-458.2258714,0.00023132,2]
[426161436,1782198642000,-458.2258714,0.00023132,2]
[426161425,1782198642000,-329.3205527,0.00023132,2]
[426161430,1782198642000,-458.2258714,0.00023132,2]
[426161426,1782198642000,-458.0290866,0.00023132,2]
[426161427,1782198642000,-458.2258714,0.00023132,2]
[426161432,1782198642000,-327.0402988,0.00023132,2]
[426161435,1782198642000,-458.2258714,0.00023132,2]
[426161433,1782198642000,-330.5845746,0.00023132,2]
[426161429,1782198642000,-466.1424479,0.00023132,2]
[426161431,1782198642000,-458.2258714,0.00023132,2]
[426161434,1782198642000,-327.087283,0.00023132,2]
[426161441,1782198642000,-326.4237973,0.00023132,2]
[426161447,1782198642000,-458.1564556,0.00023132,2]
[426161443,1782198642000,-458.2258715,0.00023132,2]
[426161428,1782198642000,-327.0402988,0.00023132,2]
[426161469,1782198642000,-1419.469637,0.00023132,2]
[426161458,1782198642000,-647.47076533,0.00023132,2]
[426161468,1782198642000,-192.18257964,0.00023132,2]
[426161506,1782198642000,-326.9015892,0.00023132,2]
[426161509,1782198642000,-458.2258714,0.00023132,2]
[426161508,1782198642000,-327.0402988,0.00023132,2]
[426161510,1782198642000,-327.0402988,0.00023132,2]
[426161513,1782198642000,-151.0,0.00023132,2]
[426161512,1782198642000,-458.1564556,0.00023132,2]
[426161516,1782198642000,-327.0402988,0.00023132,2]
[426161525,1782198642000,-1012.9,0.000232,7]
[426161526,1782198642000,-217.954,0.00023267,2]
[426161524,1782198642000,-713.947,0.00023199,2]
[426161515,1782198642000,-151.0,0.00023132,2]
[426161518,1782198642000,-327.087283,0.00023132,2]
[426161522,1782198642000,-327.0402988,0.00023132,2]
[426161520,1782198642000,-912.36287534,0.00023132,2]
[426161521,1782198642000,-327.0402988,0.00023132,2]
[426161523,1782198642000,-282.895157,0.00023147,14]
[426161527,1782198642000,-445.0,0.00023267,2]
[426161519,1782198642000,-326.3649842,0.00023132,2]
[426161517,1782198642000,-457.2616619,0.00023132,2]
[426161529,1782198642000,-155.79741579,0.00023288,2]
[426161528,1782198642000,-186.0,0.00023267,2]
[426161532,1782198642000,-568.38783291,0.00023288,2]
[426161531,1782198642000,-378.92522194,0.00023288,2]
[426161530,1782198642000,-189.46261097,0.00023288,2]
[426161534,1782198642000,-1019.3999,0.000233,2]
[426161533,1782198642000,-757.85044387,0.00023288,2]
[426161535,1782198642000,-331.96,0.000233,2]
[426161507,1782198642000,-458.2258714,0.00023132,2]
[426161505,1782198642000,-464.2650438,0.00023132,2]
[426161511,1782198642000,-481.8532148,0.00023132,2]
[426161514,1782198642000,-458.2258714,0.00023132,2]
[426161477,1782198642000,-262.73320586,0.00023132,2]
[426161488,1782198642000,-199.98218573,0.00023132,2]
[426161487,1782198642000,-295.4615984,0.00023132,2]
[426161489,1782198642000,-458.2258714,0.00023132,2]
[426161476,1782198642000,-353.63841534,0.00023132,5]
[426161479,1782198642000,-680.0425639,0.00023132,2]
[426161478,1782198642000,-152.73674913,0.00023132,2]
[426161480,1782198642000,-1272.05761727,0.00023132,5]
[426161484,1782198642000,-1300.0,0.00023132,2]
[426161503,1782198642000,-156.83,0.00023132,2]
[426161481,1782198642000,-328.92146828,0.00023132,2]
[426161485,1782198642000,-601.49915904,0.00023132,2]
[426161483,1782198642000,-160.0,0.00023132,2]
[426161482,1782198642000,-1060.20747466,0.00023132,2]
[426161486,1782198642000,-162.410501,0.00023132,2]
[426161492,1782198642000,-458.1564556,0.00023132,2]
[426161504,1782198642000,-156.83,0.00023132,2]
[426161490,1782198642000,-327.0402988,0.00023132,2]
[426161498,1782198642000,-156.83,0.00023132,2]
[426161502,1782198642000,-156.83,0.00023132,2]
[426161496,1782198642000,-327.087283,0.00023132,2]
[426161493,1782198642000,-326.8529661,0.00023132,2]
[426161497,1782198642000,-156.8,0.00023132,2]
[426161501,1782198642000,-156.83,0.00023132,2]
[426161495,1782198642000,-327.0402988,0.00023132,2]
[426161500,1782198642000,-156.83,0.00023132,2]
[426161494,1782198642000,-458.2258714,0.00023132,2]
[426161473,1782198642000,-661.69762908,0.00023132,2]
[426161491,1782198642000,-458.1564556,0.00023132,2]
[426161499,1782198642000,-156.83,0.00023132,2]
[426161545,1782198643000,-3327.04877778,0.00023444,2]
[426161543,1782198643000,-3298.96383506,0.00023444,2]
[426161542,1782198643000,-56849.32632596,0.00023444,2]
[426161537,1782198643000,-1225.89,0.000233,2]
[426161541,1782198643000,-1000.0,0.00023347,2]
[426161540,1782198643000,-1223.89,0.000233,2]
[426161539,1782198643000,-1223.895,0.000233,2]
[426161538,1782198643000,-1225.89,0.000233,2]
[426161536,1782198643000,-271.92812411,0.000233,2]
[426161544,1782198643000,-364.124706,0.00023444,2]
[426161555,1782198644000,-904.04975801,0.000223,2]
[426161557,1782198644000,-159.95047955,0.000228,2]
[426161556,1782198644000,-95.95024199,0.000223,2]
[426161580,1782198647000,-304.0,0.000223,2]
[426161583,1782198731000,189.57223349,0.00023132,120]
[426161693,1782199019000,10000.0,0.00023132,30]
[426161694,1782199027000,1000.0,0.00023132,30]
[426161697,1782199028000,1000.0,0.00023132,30]
[426161706,1782199087000,-100000.0,0.00022,30]
[426161707,1782199103000,-100000.0,0.00022,30]
[426161708,1782199105000,-100000.0,0.00022,30]
[426161709,1782199106000,-100000.0,0.00022,30]
[426161710,1782199107000,-100000.0,0.00022,30]
[426161711,1782199108000,-100000.0,0.00022,30]
[426161712,1782199110000,-100000.0,0.00022,30]
[426161713,1782199112000,-100000.0,0.00022,30]
[426161714,1782199116000,-100000.0,0.00022,30]
[426161719,1782199212000,151.0,0.0002313,120]
[426161720,1782199225000,156.93595682,0.0002313,120]
[426161721,1782199275000,166.0,0.0002313,120]
[426161724,1782199329000,164.0,0.0002313,120]
[426161726,1782199471000,158.91724152,0.0002313,120]
[426161728,1782199520000,163.0,0.0002313,120]
[426161790,1782199831000,-158.34,0.00017808,2]
[426161789,1782199831000,-1577.43048586,0.00016525,13]
[426161791,1782199831000,-1031.70847624,0.00017991,2]
[426161792,1782199831000,-10.91822757,0.00018444,2]
[426161794,1782199831000,-1247.32156843,0.00018444,2]
[426161796,1782199831000,-161.47866954,0.00018743,2]
[426161799,1782199831000,-543.11205232,0.00019044,2]
[426161797,1782199831000,-1886.24081574,0.00018791,2]
[426161795,1782199831000,-204.91398159,0.00018743,2]
[426161935,1782199838000,-156.15927889,0.00020043,2]
[426161919,1782199838000,-217.86224051,0.00019523,2]
[426161923,1782199838000,-182.87140853,0.00019523,2]
[426161921,1782199838000,-156.47441057,0.00019523,2]
[426161933,1782199838000,-152.93023965,0.00020043,2]
[426161917,1782199838000,-409.82796318,0.00019523,2]
[426161927,1782199838000,-322.95733909,0.00019523,2]
[426161913,1782199838000,-165.47511168,0.00019523,2]
[426161931,1782199838000,-352.43652966,0.00020043,2]
[426161915,1782199838000,-175.39514728,0.00019523,2]
[426161925,1782199838000,-165.08398674,0.00019523,2]
[426161911,1782199838000,-176.21826483,0.00019523,2]
[426161907,1782199838000,-169.0,0.00019205,3]
[426161905,1782199838000,-181.18674218,0.00019044,2]
[426161909,1782199838000,-1515.6632781,0.00019244,2]
[426161929,1782199838000,-181.49393192,0.00020043,2]
[426161936,1782199838000,-163.80604106,0.00020043,2]
[426161962,1782199838000,-291.23220168,0.0002039,2]
[426161944,1782199838000,-312.94882113,0.00020044,2]
[426161972,1782199838000,-500.0,0.0002039,2]
[426161974,1782199838000,-145.36633263,0.0002039,2]
[426161968,1782199838000,-500.0,0.0002039,2]
[426161970,1782199838000,-500.0,0.0002039,2]
[426161966,1782199838000,-500.0,0.0002039,2]
[426161938,1782199838000,-350.79029456,0.00020044,2]
[426161960,1782199838000,-413.82147096,0.0002039,2]
[426161955,1782199838000,-500.0,0.0002039,2]
[426161964,1782199838000,-500.0,0.0002039,2]
[426161953,1782199838000,-484.43600863,0.00020044,2]
[426161951,1782199838000,-156.68932612,0.00020044,2]
[426161949,1782199838000,-330.16797349,0.00020044,2]
[426161956,1782199838000,-615.38130122,0.0002039,2]
[426161947,1782199838000,-365.74281707,0.00020044,2]
[426161940,1782199838000,-614.74194478,0.00020044,2]
[426161942,1782199838000,-435.72448101,0.00020044,2]
[426161958,1782199838000,-326.30959889,0.0002039,2]
[426162170,1782199840000,-89.64545302,0.0002039,2]
[426162166,1782199840000,-200.81318209,0.0002039,2]
[426162162,1782199840000,-354.63366737,0.0002039,2]
[426162164,1782199840000,-105.0472972,0.0002039,2]
[426162168,1782199840000,-496.42533504,0.0002039,2]
[426162174,1782199840000,-237.96662911,0.0002039,2]
[426162177,1782199840000,-819.65592637,0.00020391,2]
[426162183,1782199840000,-548.6142256,0.00020391,2]
[426162188,1782199840000,-4.61383695,0.00020391,2]
[426162179,1782199840000,-469.4232317,0.00020391,2]
[426162186,1782199840000,-495.25196023,0.00020391,2]
[426162175,1782199840000,-526.18544184,0.00020391,2]
[426162546,1782199843000,-151.0,0.00021565,30]
[426162541,1782199843000,-500.0,0.00021389,2]
[426162548,1782199843000,-500.0,0.00021663,2]
[426162532,1782199843000,-500.0,0.00021115,2]
[426162534,1782199843000,-500.0,0.00021115,2]
[426162536,1782199843000,-500.0,0.00021115,2]
[426162537,1782199843000,-500.0,0.00021115,2]
[426162530,1782199843000,-500.0,0.00021115,2]
[426162513,1782199843000,-500.0,0.00020645,2]
[426162508,1782199843000,-653.58672152,0.00020391,2]
[426162523,1782199843000,-445.0,0.00020646,2]
[426162512,1782199843000,-500.0,0.00020645,2]
[426162543,1782199843000,-1109.32209077,0.00021501,2]
[426162525,1782199843000,-1024.56990796,0.00020738,2]
[426162510,1782199843000,-500.0,0.00020645,2]
[426162506,1782199843000,-645.91467817,0.00020391,2]
[426162519,1782199843000,-500.0,0.00020645,2]
[426162521,1782199843000,-186.0,0.00020646,2]
[426162517,1782199843000,-500.0,0.00020645,2]
[426162515,1782199843000,-500.0,0.00020645,2]
[426162504,1782199843000,-308.7648153,0.00020391,2]
[426162526,1782199843000,-347.44969355,0.00020738,2]
[426162539,1782199843000,-500.0,0.00021115,2]
[426162528,1782199843000,-459.94365417,0.00020738,2]
[426162544,1782199843000,-212.137,0.00021565,2]
[426162550,1782199843000,-463.43355128,0.00021916,2]
[426162589,1782199843000,-500.0,0.00022211,2]
[426162591,1782199843000,-520.93777057,0.00022221,2]
[426162587,1782199843000,-1000.0,0.0002219,2]
[426162595,1782199843000,-152.43264088,0.00022272,2]
[426162585,1782199843000,-500.0,0.0002219,2]
[426162581,1782199843000,-417.15472785,0.00022074,2]
[426162577,1782199843000,-65.62832204,0.00022074,2]
[426162575,1782199843000,-160.0,0.00022074,2]
[426162579,1782199843000,-94.37167796,0.00022074,2]
[426162573,1782199843000,-500.0,0.00021937,2]
[426162593,1782199843000,-896.14529834,0.00022272,2]
[426162565,1782199843000,-567.96138169,0.00021918,2]
[426162554,1782199843000,-36.56644872,0.00021916,2]
[426162569,1782199843000,-500.0,0.00021918,2]
[426162556,1782199843000,-1000.0,0.00021917,2]
[426162558,1782199843000,-267.57601303,0.00021918,2]
[426162559,1782199843000,-535.15202605,0.00021918,2]
[426162597,1782199843000,-492.46735912,0.00022354,10]
[426162571,1782199843000,-544.23099525,0.00021918,2]
[426162563,1782199843000,-378.64092113,0.00021918,2]
[426162567,1782199843000,-757.28184225,0.00021918,2]
[426162561,1782199843000,-189.32046056,0.00021918,2]
[426162956,1782199846000,-257.186542,0.00022909,14]
[426162986,1782199846000,-1522.75745304,0.00023132,2]
[426162966,1782199846000,-272.063444,0.00022909,14]
[426162964,1782199846000,-497.236632,0.00022909,14]
[426162962,1782199846000,-328.618316,0.00022909,14]
[426162968,1782199846000,-160.0,0.00022909,14]
[426162971,1782199846000,-332.531726,0.00022909,14]
[426162960,1782199846000,-160.0,0.00022909,14]
[426162970,1782199846000,-246.265863,0.00022909,14]
[426162958,1782199846000,-354.373085,0.00022909,14]
[426162973,1782199846000,-500.0,0.00023012,2]
[426162941,1782199846000,-151.0,0.00022565,30]